bitfinex-derivatives/quotes_BNBF0:USTF0_20250523
["timestamp","ask_amount","ask_price","bid_price","bid_amount"]
[1748033738464,1.08725202,662.98,662.26,1.4637048]
[1748033738664,1.08725202,662.97,662.26,1.4637048]
[1748033738865,1.349,663.01,662.26,1.4637048]
[1748033739068,1.08727701,663.0,662.26,1.4637048]
[1748033739268,1.08727701,662.99,662.26,1.4637048]
[1748033739467,1.08727477,662.98,662.26,1.4637048]
[1748033739662,1.08727477,662.97,662.26,1.4637048]
[1748033739863,1.08727477,662.96,662.26,1.4637048]
[1748033740062,1.349,663.01,662.3,1.4637048]
[1748033740369,1.56810437,663.0,662.3,1.4637048]
[1748033740564,1.08727159,662.99,662.3,1.4637048]
[1748033740769,1.08727159,662.98,662.3,1.4637048]
[1748033740969,1.08727159,662.97,662.3,1.4637048]
[1748033741169,1.08726595,662.96,662.3,1.4637048]
[1748033741365,1.349,663.01,662.3,1.4637048]
[1748033741568,1.08727781,663.0,662.3,1.4637048]
[1748033741770,1.08727781,662.99,662.3,1.4637048]
[1748033741971,1.08727781,662.98,662.3,1.4637048]
[1748033742172,1.08727781,662.97,662.3,1.4637048]
[1748033742472,1.349,663.01,662.3,1.4637048]
[1748033742671,1.08611468,663.0,662.3,1.4637048]
[1748033742865,1.08611468,662.99,662.3,1.4637048]
[1748033743069,1.0861233,662.98,662.3,1.4637048]
[1748033743269,1.0861233,662.97,662.29,1.4637048]
[1748033743468,1.349,663.01,662.29,1.4637048]
[1748033743671,1.08612894,663.0,662.29,1.4637048]
[1748033743864,1.08612894,662.99,662.29,1.4637048]
[1748033744069,1.08612894,662.98,662.29,1.4637048]
[1748033744271,1.08612894,662.97,662.29,1.4637048]
[1748033744570,1.349,663.01,662.29,1.4637048]
[1748033744771,1.08613014,663.0,662.29,1.4637048]
[1748033744970,1.08613014,662.99,662.29,1.4637048]
[1748033745270,1.08613014,662.98,662.29,1.4637048]
[1748033745470,1.08613014,662.97,662.29,1.4637048]
[1748033745666,1.349,663.01,662.29,1.4637048]
[1748033745866,1.08613788,663.0,662.29,1.4637048]
[1748033746066,1.08613788,662.99,662.29,1.4637048]
[1748033746269,1.08613788,662.98,662.29,1.4637048]
[1748033746470,1.08613788,662.97,662.39,1.4637048]
[1748033746672,1.349,663.01,662.39,1.4637048]
[1748033746873,1.08618425,663.0,662.39,1.4637048]
[1748033747073,1.08618425,662.99,662.39,1.4637048]
[1748033747274,1.08618425,662.98,662.39,1.4637048]
[1748033747474,1.08618425,662.97,662.39,1.4637048]
[1748033747774,1.349,663.01,662.39,1.4637048]
[1748033747970,1.08625023,663.0,662.39,1.4637048]
[1748033748171,1.08625023,662.99,662.39,1.4637048]
[1748033748371,1.349,663.01,662.39,1.4637048]
[1748033748569,1.08624758,663.0,662.39,1.4637048]
[1748033748773,1.08624758,662.99,662.39,1.4637048]
[1748033748973,1.08624758,662.98,662.39,1.4637048]
[1748033749269,1.08624758,662.97,662.39,1.4637048]
[1748033749473,1.08624758,662.96,662.39,1.4637048]
[1748033749769,1.349,663.01,662.39,1.4637048]
[1748033749975,1.56691115,663.0,662.39,1.4637048]
[1748033750271,1.08633711,662.99,662.39,1.4637048]
[1748033750475,1.08633711,662.98,662.39,1.4637048]
[1748033750676,1.08633711,662.97,662.39,1.4637048]
[1748033750876,1.08633711,662.96,662.39,1.4637048]
[1748033751076,1.349,663.01,662.39,1.4637048]
[1748033751280,1.5669811,663.0,662.39,1.4637048]
[1748033751481,1.08637586,662.99,662.39,1.4637048]
[1748033751672,1.08637586,662.98,662.39,1.4637048]
[1748033751873,1.08637586,662.97,662.39,1.4637048]
[1748033752074,1.08637586,662.96,662.39,1.4637048]
[1748033752278,1.349,663.01,662.39,1.4637048]
[1748033752477,1.08639352,663.0,662.39,1.4637048]
[1748033752675,1.08639352,662.99,662.39,1.4637048]
[1748033752876,1.08639352,662.98,662.39,1.4637048]
[1748033753076,1.08639352,662.97,662.39,1.4637048]
[1748033753277,1.08639352,662.96,662.45,1.4637048]
[1748033753579,2.46597207,663.01,662.45,1.4637048]
[1748033753780,1.56707681,663.0,662.45,1.4637048]
[1748033753979,1.08640557,662.99,662.45,1.4637048]
[1748033754177,1.08640557,662.98,662.45,1.4637048]
[1748033754479,1.08640557,662.97,662.45,1.4637048]
[1748033754677,1.08640557,662.96,662.45,1.4637048]
[1748033754982,2.46597207,663.01,662.45,1.4637048]
[1748033755177,1.56666315,663.0,662.45,1.4637048]
[1748033755381,1.0862593,662.99,662.45,1.4637048]
[1748033755585,1.0862593,662.98,662.45,1.4637048]
[1748033755777,1.0862593,662.97,662.45,1.4637048]
[1748033755976,1.0862593,662.96,662.46,1.4637048]
[1748033756181,1.11697207,663.0,662.46,1.4637048]
[1748033756381,1.08628155,662.99,662.46,1.4637048]
[1748033756583,1.08628155,662.98,662.46,1.4637048]
[1748033756783,1.08628155,662.97,662.46,1.4637048]
[1748033756978,1.08628155,662.96,662.46,1.4637048]
[1748033757178,1.11697207,663.0,662.46,1.4637048]
[1748033757384,1.08629467,662.99,662.46,1.4637048]
[1748033757583,1.08629467,662.98,662.46,1.4637048]
[1748033757779,1.11697207,663.0,662.46,1.4637048]
[1748033757780,1.08629467,662.97,662.46,1.4637048]
[1748033757984,1.08629467,662.96,662.46,1.4637048]
[1748033758185,1.11697207,663.0,662.46,1.4637048]
[1748033758385,1.08631376,662.99,662.46,1.4637048]
[1748033758685,1.08631376,662.98,662.48,1.4637048]
[1748033758881,1.08631376,662.97,662.48,1.4637048]
[1748033759079,1.08631376,662.96,662.48,1.4637048]
[1748033759283,1.11697207,662.99,662.48,1.4637048]
[1748033759482,1.08635755,662.98,662.48,1.4637048]
[1748033759685,1.08635755,662.97,662.48,1.4637048]
[1748033759987,1.08635755,662.96,662.48,1.4637048]
[1748033760184,1.11697207,662.99,662.48,1.4637048]
[1748033760484,1.0863824,662.98,662.48,1.4637048]
[1748033760682,1.0863824,662.97,662.48,1.4637048]
[1748033760882,1.0863824,662.96,662.48,1.4637048]
[1748033761082,1.11697207,662.99,662.48,1.4637048]
[1748033761282,1.08622659,662.98,662.36,1.4637048]
[1748033761487,1.08622659,662.97,662.36,1.4637048]
[1748033761682,1.08622659,662.96,662.36,1.4637048]
[1748033761879,1.08570693,662.95,662.36,1.4637048]
[1748033762082,1.349,663.01,662.36,1.4637048]
[1748033762282,1.56587807,663.0,662.36,1.4637048]
[1748033762482,1.08569013,662.99,662.36,1.4637048]
[1748033762785,1.08569013,662.98,662.36,1.4637048]
[1748033763086,1.08569013,662.97,662.36,1.4637048]
[1748033763286,1.08569013,662.96,662.36,1.4637048]
[1748033763585,1.349,663.01,662.36,1.4637048]
[1748033763785,1.56542973,663.0,662.36,1.4637048]
[1748033763986,1.08537848,662.99,662.34,1.4637048]
[1748033764182,1.08538736,662.98,662.34,1.4637048]
[1748033764385,1.08538736,662.97,662.34,1.4637048]
[1748033764588,1.08538736,662.96,662.34,1.4637048]
[1748033764787,1.08538736,662.95,662.34,1.4637048]
[1748033764988,1.349,663.01,662.34,1.4637048]
[1748033765189,1.56718474,663.0,662.34,1.4637048]
[1748033765391,1.08713531,662.99,662.34,1.4637048]
[1748033765588,1.08713531,662.98,662.34,1.4637048]
[1748033765783,1.08713531,662.97,662.34,1.4637048]
[1748033765988,1.08713531,662.96,662.34,1.4637048]
[1748033766185,1.349,663.01,662.34,1.4637048]
[1748033766388,1.56720594,663.0,662.34,1.4637048]
[1748033766590,1.08719955,662.99,662.34,1.4637048]
[1748033766786,1.08719955,662.98,662.34,1.4637048]
[1748033767090,1.08719955,662.97,662.34,1.4637048]
[1748033767290,1.08719955,662.96,662.34,1.4637048]
[1748033767492,1.08725202,662.95,662.34,1.4637048]
[1748033767692,1.349,663.01,662.32,1.4637048]
[1748033767891,1.08725203,663.0,662.32,1.4637048]
[1748033768092,1.08725203,662.99,662.32,1.4637048]
[1748033768294,1.349,663.01,662.32,1.4637048]
[1748033768494,1.08724261,663.0,662.32,1.4637048]
[1748033768692,1.08724261,662.99,662.32,1.4637048]
[1748033768892,1.349,663.01,662.32,1.4637048]
[1748033769192,1.08724838,663.0,662.32,1.4637048]
[1748033769392,1.08724838,662.99,662.32,1.4637048]
[1748033769595,1.349,663.01,662.32,1.4637048]
[1748033769892,1.08720844,663.0,662.32,1.4637048]
[1748033770092,1.08720844,662.99,662.32,1.4637048]
[1748033770293,1.349,663.01,662.32,1.4637048]
[1748033770494,1.08703361,663.0,662.19,1.4637048]
[1748033770793,1.08703361,662.99,662.19,1.4637048]
[1748033771095,1.349,663.01,662.19,1.4637048]
[1748033771295,1.08698441,663.0,662.19,1.4637048]
[1748033771488,1.08693598,662.99,662.19,1.4637048]
[1748033771687,1.349,663.01,662.19,1.4637048]
[1748033771888,1.08693415,663.0,662.19,1.4637048]
[1748033772089,1.08693415,662.99,662.19,1.4637048]
[1748033772290,1.349,663.01,662.19,1.4637048]
[1748033772495,1.08690052,663.0,662.19,1.4637048]
[1748033772692,1.08690052,662.99,662.19,1.4637048]
[1748033772895,1.349,663.01,662.19,1.4637048]
[1748033773094,1.08689393,663.0,662.19,1.4637048]
[1748033773299,1.08687811,662.99,662.19,1.4637048]
[1748033773500,1.349,663.01,662.19,1.4637048]
[1748033773700,1.08686272,663.0,662.19,1.4637048]
[1748033773999,1.08686272,662.99,662.19,1.4637048]
[1748033774199,1.349,663.01,662.19,1.4637048]
[1748033774400,1.08683476,663.0,662.19,1.4637048]
[1748033774599,1.08683476,662.99,662.19,1.4637048]
[1748033774792,1.349,663.01,662.19,1.4637048]
[1748033774992,1.08687134,663.0,662.19,1.4637048]
[1748033775197,1.349,663.01,662.19,1.4637048]
[1748033775198,1.08687134,662.99,662.19,1.4637048]
[1748033775399,1.349,663.01,662.19,1.4637048]
[1748033775601,1.08686363,663.0,662.19,1.4637048]
[1748033775801,1.08686363,662.99,662.19,1.4637048]
[1748033776003,1.08683558,662.98,662.19,1.4637048]
[1748033776202,1.349,663.01,662.19,1.4637048]
[1748033776402,1.0868012,663.0,662.19,1.4637048]
[1748033776599,1.0868012,662.99,662.19,1.4637048]
[1748033776803,1.08676711,662.98,662.19,1.4637048]
[1748033777003,1.08676711,662.97,662.19,1.4637048]
[1748033777199,1.08676711,662.96,662.19,1.4637048]
[1748033777504,1.08676711,662.95,662.19,1.4637048]
[1748033777705,1.08676711,662.94,662.19,1.4637048]
[1748033777900,1.08676711,662.93,662.19,1.4637048]
[1748033778106,1.08673592,662.92,662.19,1.4637048]
[1748033778301,1.11697207,663.21,662.19,1.4637048]
[1748033778607,1.11697207,662.99,662.37,1.4637048]
[1748033778806,1.56645794,662.98,662.37,1.4637048]
[1748033779006,1.56645794,662.97,662.37,1.4637048]
[1748033779206,1.08670125,662.96,662.37,1.4637048]
[1748033779404,1.08670125,662.95,662.37,1.4637048]
[1748033779604,1.08670125,662.94,662.37,1.4637048]
[1748033779805,1.08670125,662.93,662.37,1.4637048]
[1748033780004,1.08670125,662.92,662.37,1.4637048]
[1748033780206,1.08670125,662.91,662.37,1.4637048]
[1748033780409,1.08670125,662.9,662.37,1.4637048]
[1748033780608,1.796,662.92,662.37,1.4637048]
[1748033780907,1.08652353,662.91,662.37,1.4637048]
[1748033781107,1.08652353,662.9,662.37,1.4637048]
[1748033781310,1.796,662.92,662.36,1.4637048]
[1748033781509,1.08643908,662.91,662.36,1.4637048]
[1748033781713,1.08643908,662.9,662.36,1.4637048]
[1748033781907,1.796,662.92,662.36,1.4637048]
[1748033782105,1.08643967,662.91,662.36,1.4637048]
[1748033782305,1.796,662.92,662.36,1.4637048]
[1748033782510,1.08637067,662.91,662.36,1.4637048]
[1748033782708,1.08636748,662.9,662.36,1.4637048]
[1748033782910,1.796,662.92,662.36,1.4637048]
[1748033783210,1.08636804,662.91,662.36,1.4637048]
[1748033783410,1.796,662.92,662.36,1.4637048]
[1748033783610,1.08629767,662.91,662.36,1.4637048]
[1748033783806,1.796,662.92,662.36,1.4637048]
[1748033784012,1.56323539,662.91,662.36,1.4637048]
[1748033784309,1.56327715,662.9,662.36,1.4637048]
[1748033784508,1.56327715,662.89,662.36,1.4637048]
[1748033784712,1.56313122,662.88,662.14,1.4637048]
[1748033785007,1.08374184,662.87,662.14,1.4637048]
[1748033785215,1.08374184,662.86,662.14,1.4637048]
[1748033785514,1.08374184,662.85,662.14,1.4637048]
[1748033785717,1.08374184,662.84,662.14,1.4637048]
[1748033785911,1.796,662.92,662.14,1.4637048]
[1748033786214,1.56237497,662.91,662.14,1.4637048]
[1748033786413,1.56237497,662.9,662.14,1.4637048]
[1748033786614,1.56237497,662.89,662.14,1.4637048]
[1748033786814,1.08308539,662.88,662.14,1.4637048]
[1748033787016,1.08308539,662.87,662.14,1.4637048]
[1748033787211,1.08308539,662.86,662.14,1.4637048]
[1748033787412,1.08308539,662.85,662.14,1.4637048]
[1748033787615,1.796,662.92,662.1,1.4637048]
[1748033787816,1.56352979,662.91,662.1,1.4637048]
[1748033788117,1.56352979,662.9,662.1,1.4637048]
[1748033788312,1.08442561,662.89,662.1,1.4637048]
[1748033788513,1.08442561,662.88,662.1,1.4637048]
[1748033788817,1.08442561,662.87,662.1,1.4637048]
[1748033789117,1.08442561,662.86,662.1,1.4637048]
[1748033789317,1.796,662.92,662.1,1.4637048]
[1748033789513,0.47896192,662.91,662.1,1.4637048]
[1748033789718,1.08410382,662.91,662.1,1.4637048]
[1748033789916,1.08410382,662.9,662.1,1.4637048]
[1748033790114,1.796,662.92,662.1,1.4637048]
[1748033790314,1.08410791,662.91,662.1,1.4637048]
[1748033790517,1.08410791,662.9,662.1,1.4637048]
[1748033790713,1.08410791,662.89,662.1,1.4637048]
[1748033790918,1.08410791,662.88,662.1,1.4637048]
[1748033791119,1.08410791,662.87,662.1,1.4637048]
[1748033791319,1.796,662.92,662.1,1.4637048]
[1748033791519,1.08383128,662.91,662.1,1.4637048]
[1748033791722,1.08383128,662.9,662.09,1.4637048]
[1748033791921,1.08383128,662.89,662.09,1.4637048]
[1748033792119,1.08383128,662.88,662.09,1.4637048]
[1748033792322,1.796,662.92,662.09,1.4637048]
[1748033792619,1.08548552,662.91,662.09,1.4637048]
[1748033792819,1.08548552,662.9,662.09,1.4637048]
[1748033793017,1.08548552,662.89,662.09,1.4637048]
[1748033793217,1.08548552,662.88,662.09,1.4637048]
[1748033793424,1.796,662.92,662.09,1.4637048]
[1748033793626,1.0853879,662.91,662.09,1.4637048]
[1748033793819,1.0853879,662.9,662.09,1.4637048]
[1748033794022,1.0853879,662.89,662.09,1.4637048]
[1748033794219,1.796,662.92,662.09,1.4637048]
[1748033794421,1.08531421,662.91,662.09,1.4637048]
[1748033794624,1.08531421,662.9,662.09,1.4637048]
[1748033794821,1.0853018,662.89,662.09,1.4637048]
[1748033795026,1.796,662.92,662.09,1.4637048]
[1748033795228,1.08523943,662.91,662.09,1.4637048]
[1748033795428,1.08523943,662.9,662.09,1.4637048]
[1748033795628,1.08523943,662.89,662.13,1.4637048]
[1748033795829,1.796,662.92,662.13,1.4637048]
[1748033796030,1.08521439,662.91,662.13,1.4637048]
[1748033796227,1.08521439,662.9,662.13,1.4637048]
[1748033796423,1.08521439,662.89,662.13,1.4637048]
[1748033796629,1.796,662.92,662.13,1.4637048]
[1748033796930,1.08514097,662.91,662.13,1.4637048]
[1748033797130,1.796,662.92,662.13,1.4637048]
[1748033799133,1.796,662.92,662.1,1.4637048]
[1748033802735,1.796,662.92,662.13,1.4637048]
[1748033804333,1.796,662.92,661.79,0.30221067]
[1748033804334,1.796,662.92,662.28,1.4637048]
[1748033804637,1.08431907,662.91,662.28,1.4637048]
[1748033804836,1.08427969,662.9,662.28,1.4637048]
[1748033805036,1.08427969,662.89,662.28,1.4637048]
[1748033805336,1.796,662.92,662.28,1.4637048]
[1748033805540,1.08421915,662.91,662.28,1.4637048]
[1748033805734,1.08421915,662.9,662.28,1.4637048]
[1748033805932,1.08421915,662.89,662.28,1.4637048]
[1748033806132,1.08421915,662.88,662.28,1.4637048]
[1748033806332,1.08421915,662.87,662.28,1.4637048]
[1748033806538,1.796,662.92,662.28,1.4637048]
[1748033806738,1.08411075,662.91,662.28,1.4637048]
[1748033806939,1.08411075,662.9,662.28,1.4637048]
[1748033807132,1.08411075,662.89,662.28,1.4637048]
[1748033807333,1.08411075,662.88,662.28,1.4637048]
[1748033807532,1.0840252,662.87,662.28,1.4637048]
[1748033807732,1.08402449,662.86,662.28,1.4637048]
[1748033807936,1.796,662.92,662.28,1.4637048]
[1748033808134,1.56253392,662.91,662.1,1.4637048]
[1748033808337,1.08402582,662.9,662.1,1.4637048]
[1748033808536,1.08402582,662.89,662.1,1.4637048]
[1748033808832,1.08402582,662.88,662.1,1.4637048]
[1748033809033,1.08402582,662.87,662.1,1.4637048]
[1748033809238,1.796,662.92,662.1,1.4637048]
[1748033809438,1.08389144,662.91,662.1,1.4637048]
[1748033809638,1.08389144,662.9,662.1,1.4637048]
[1748033809839,1.08389144,662.89,662.1,1.4637048]
[1748033810036,1.08389144,662.88,662.1,1.4637048]
[1748033810235,1.08389144,662.87,662.1,1.4637048]
[1748033810441,1.796,662.92,662.1,1.4637048]
[1748033810742,1.0837987,662.91,662.08,1.4637048]
[1748033810942,1.0837987,662.9,662.08,1.4637048]
[1748033811142,1.0837987,662.89,662.08,1.4637048]
[1748033811444,1.0837987,662.88,662.08,1.4637048]
[1748033811638,1.0837987,662.87,662.08,1.4637048]
[1748033811840,1.0837987,662.86,662.08,1.4637048]
[1748033812042,1.0837987,662.85,662.08,1.4637048]
[1748033812238,1.56213903,662.84,662.08,1.4637048]
[1748033812441,1.56199462,662.83,662.08,1.4637048]
[1748033812737,1.0837987,662.82,662.08,1.4637048]
[1748033812938,1.56197843,662.81,662.08,1.4637048]
[1748033813141,1.56197843,662.8,662.08,1.4637048]
[1748033813336,1.0837987,662.79,662.08,1.4637048]
[1748033813543,1.0837987,662.78,662.08,1.4637048]
[1748033813743,1.0837987,662.77,662.08,1.4637048]
[1748033813942,1.0837987,662.76,662.08,1.4637048]
[1748033814144,1.0837987,662.75,661.99,1.4637048]
[1748033814344,1.0837987,662.74,661.99,1.4637048]
[1748033814540,1.0837987,662.73,661.99,1.4637048]
[1748033814746,1.11697207,662.81,661.99,1.4637048]
[1748033814747,1.0837987,662.72,661.99,1.4637048]
[1748033814945,1.11697207,662.81,661.99,1.4637048]
[1748033815144,1.56040585,662.8,661.99,1.4637048]
[1748033815340,1.56040585,662.79,661.99,1.4637048]
[1748033815542,1.56040585,662.78,661.99,1.4637048]
[1748033815746,1.56040585,662.77,661.99,1.4637048]
[1748033815946,1.56040585,662.76,661.99,1.4637048]
[1748033816245,1.08254865,662.75,661.99,1.4637048]
[1748033816450,1.08254865,662.74,661.99,1.4637048]
[1748033816645,1.08197629,662.73,661.99,1.4637048]
[1748033816848,1.08197629,662.72,661.99,1.4637048]
[1748033817042,1.08197629,662.71,661.91,1.4637048]
[1748033817246,1.11697207,662.76,661.91,1.4637048]
[1748033817443,1.55910479,662.75,661.91,1.4637048]
[1748033817647,1.55910479,662.74,661.91,1.4637048]
[1748033817847,1.08170604,662.73,661.91,1.4637048]
[1748033818149,1.5590929,662.72,661.91,1.4637048]
[1748033818448,1.0812964,662.71,661.91,1.4637048]
[1748033818648,1.0812964,662.7,661.91,1.4637048]
[1748033818844,1.0812964,662.69,661.91,1.4637048]
[1748033819048,1.11697207,662.76,661.91,1.4637048]
[1748033819245,1.08127437,662.75,661.91,1.4637048]
[1748033819447,1.08127437,662.74,661.79,0.30221067]
[1748033819649,1.08127437,662.73,661.79,0.30221067]
[1748033819842,1.08127437,662.72,661.79,0.30221067]
[1748033820044,1.08127437,662.71,661.79,0.30221067]
[1748033820248,1.407,662.78,661.79,0.30221067]
[1748033820450,1.5581654,662.77,661.79,0.30221067]
[1748033820649,1.5581654,662.76,661.79,0.30221067]
[1748033820851,1.081038,662.75,661.79,0.30221067]
[1748033821050,1.081038,662.74,661.79,0.30221067]
[1748033821250,1.081038,662.73,661.79,0.30221067]
[1748033821450,1.081038,662.72,661.79,0.30221067]
[1748033821652,1.08142094,662.71,661.79,0.30221067]
[1748033821850,1.407,662.78,661.79,0.30221067]
[1748033822052,1.55879503,662.77,661.79,0.30221067]
[1748033822350,1.55879503,662.76,661.79,0.30221067]
[1748033822550,1.08147465,662.75,661.79,0.30221067]
[1748033822750,1.08147465,662.74,661.79,0.30221067]
[1748033822946,1.08147465,662.73,661.79,0.30221067]
[1748033823147,1.08147465,662.72,661.79,0.30221067]
[1748033823452,1.08147465,662.71,661.79,0.30221067]
[1748033823650,1.407,662.78,661.79,0.30221067]
[1748033823849,1.55888448,662.77,661.79,0.30221067]
[1748033824049,1.55888448,662.76,661.79,0.30221067]
[1748033824252,1.08153607,662.75,661.79,0.30221067]
[1748033824547,1.08153607,662.74,661.79,0.30221067]
[1748033824747,1.08153607,662.73,661.79,0.30221067]
[1748033824951,1.08153607,662.72,661.79,0.30221067]
[1748033825150,1.407,662.78,661.79,0.30221067]
[1748033825352,1.55888073,662.77,661.79,0.30221067]
[1748033825552,1.08153395,662.76,661.79,0.30221067]
[1748033825752,1.08153395,662.75,661.79,0.30221067]
[1748033825952,1.08153395,662.74,661.79,0.30221067]
[1748033826256,1.08153395,662.73,661.79,0.30221067]
[1748033826456,1.08153395,662.72,661.79,0.30221067]
[1748033826656,1.08153395,662.71,661.79,0.30221067]
[1748033826857,1.407,662.78,661.79,0.30221067]
[1748033827057,1.5584369,662.77,661.79,0.30221067]
[1748033827261,1.5584369,662.76,661.79,0.30221067]
[1748033827460,1.08121714,662.75,661.79,0.30221067]
[1748033827656,1.08121714,662.74,661.79,0.30221067]
[1748033827858,1.407,662.78,661.79,0.30221067]
[1748033827859,1.08121714,662.73,661.79,0.30221067]
[1748033828059,1.08121714,662.72,661.79,0.30221067]
[1748033828261,1.08121714,662.71,661.79,0.30221067]
[1748033828461,1.407,662.78,661.79,0.30221067]
[1748033828761,1.55801048,662.77,661.79,0.30221067]
[1748033828959,1.55801048,662.76,661.79,0.30221067]
[1748033829158,1.0809278,662.75,661.79,0.30221067]
[1748033829355,1.0809278,662.74,661.71,1.4637048]
[1748033829555,1.407,662.78,661.71,1.4637048]
[1748033829556,1.55791926,662.73,661.71,1.4637048]
[1748033829756,1.55791926,662.72,661.71,1.4637048]
[1748033829958,1.55791926,662.71,661.71,1.4637048]
[1748033830160,1.55791926,662.7,661.71,1.4637048]
[1748033830363,1.55791926,662.69,661.71,1.4637048]
[1748033830561,1.55782307,662.68,661.71,1.4637048]
[1748033830860,1.55782307,662.67,661.71,1.4637048]
[1748033831156,1.55782307,662.66,661.71,1.4637048]
[1748033831360,1.0809278,662.65,661.71,1.4637048]
[1748033831560,1.0809278,662.64,661.71,1.4637048]
[1748033831761,1.0809278,662.63,661.71,1.4637048]
[1748033831955,1.0809278,662.62,661.71,1.4637048]
[1748033832161,1.0809278,662.61,661.71,1.4637048]
[1748033832360,1.407,662.78,661.71,1.4637048]
[1748033832560,1.55683538,662.77,661.71,1.4637048]
[1748033832762,1.55683538,662.76,661.71,1.4637048]
[1748033832963,1.55683538,662.75,661.5,1.4637048]
[1748033833158,1.55683538,662.74,661.5,1.4637048]
[1748033833364,1.55683538,662.73,661.5,1.4637048]
[1748033833558,1.55683538,662.72,661.5,1.4637048]
[1748033833758,1.55683538,662.71,661.5,1.4637048]
[1748033833961,1.55683538,662.7,661.5,1.4637048]
[1748033834162,1.55659372,662.69,661.5,1.4637048]
[1748033834364,1.55659372,662.68,661.5,1.4637048]
[1748033834562,1.55659372,662.67,661.5,1.4637048]
[1748033834858,1.55659372,662.66,661.5,1.4637048]
[1748033835063,1.55653712,662.65,661.5,1.4637048]
[1748033835362,1.07993474,662.64,661.5,1.4637048]
[1748033835561,1.07993474,662.63,661.5,1.4637048]
[1748033835758,1.07993474,662.62,661.5,1.4637048]
[1748033835962,1.07970339,662.61,661.5,1.4637048]
[1748033836159,1.07970339,662.6,661.5,1.4637048]
[1748033836359,1.407,662.78,660.88,0.26269405]
[1748033836360,1.11697207,662.66,661.61,1.4637048]
[1748033836658,1.07963341,662.65,661.61,1.4637048]
[1748033836862,1.07963341,662.64,661.61,1.4637048]
[1748033837059,1.07963341,662.63,661.61,1.4637048]
[1748033837263,1.07963341,662.62,661.61,1.4637048]
[1748033837560,1.07963341,662.61,661.61,1.4637048]
[1748033837762,1.07950731,662.6,661.61,1.4637048]
[1748033837963,1.07950731,662.59,661.61,1.4637048]
[1748033838162,1.11697207,662.66,661.61,1.4637048]
[1748033838360,1.07954892,662.65,661.61,1.4637048]
[1748033838560,1.07954892,662.64,661.61,1.4637048]
[1748033838763,1.07954892,662.63,661.61,1.4637048]
[1748033838961,1.55585858,662.62,661.6,1.4637048]
[1748033839266,1.55585858,662.61,661.6,1.4637048]
[1748033839465,1.55585858,662.6,661.6,1.4637048]
[1748033839666,1.55579825,662.59,661.6,1.4637048]
[1748033839859,1.55578497,662.58,661.6,1.4637048]
[1748033840059,1.07954892,662.57,661.6,1.4637048]
[1748033840262,1.07954892,662.56,661.6,1.4637048]
[1748033840460,1.07954892,662.55,661.6,1.4637048]
[1748033840664,1.07954892,662.54,661.6,1.4637048]
[1748033840859,1.07954892,662.53,661.6,1.4637048]
[1748033841060,1.07954892,662.52,661.6,1.4637048]
[1748033841262,1.147,662.62,661.6,1.4637048]
[1748033841463,1.55498468,662.61,661.6,1.4637048]
[1748033841664,1.55498468,662.6,661.6,1.4637048]
[1748033841864,1.55498468,662.59,661.6,1.4637048]
[1748033842064,1.55497424,662.58,661.6,1.4637048]
[1748033842261,1.55497424,662.57,661.6,1.4637048]
[1748033842468,1.55497424,662.56,661.48,1.4637048]
[1748033842662,1.55497424,662.55,661.48,1.4637048]
[1748033842862,1.55497424,662.54,661.48,1.4637048]
[1748033843065,1.55497424,662.53,661.48,1.4637048]
[1748033843265,1.55457994,662.52,661.48,1.4637048]
[1748033843467,1.55457994,662.51,661.48,1.4637048]
[1748033843666,1.55457994,662.5,661.48,1.4637048]
[1748033843869,1.07850899,662.49,661.48,1.4637048]
[1748033844070,1.07850899,662.48,661.48,1.4637048]
[1748033844272,1.07850899,662.47,661.48,1.4637048]
[1748033844471,1.07850899,662.46,661.48,1.4637048]
[1748033844671,1.07850899,662.45,661.48,1.4637048]
[1748033844967,1.07763135,662.44,661.48,1.4637048]
[1748033845168,0.30185489,662.57,661.48,1.4637048]
[1748033845373,1.55252619,662.56,661.48,1.4637048]
[1748033845567,0.30185489,662.57,660.62,0.26277438]
[1748033845568,2.66949826,662.55,661.3,1.4637048]
[1748033845772,1.55252619,662.54,661.3,1.4637048]
[1748033845973,1.55252619,662.53,661.3,1.4637048]
[1748033846173,1.07744707,662.52,661.3,1.4637048]
[1748033846373,1.07744707,662.51,661.3,1.4637048]
[1748033846674,1.11697207,662.55,661.31,0.30243002]
[1748033848773,0.30185489,662.57,661.32,1.4637048]
[1748033848977,0.30185489,662.57,661.33,0.30242087]
[1748033851577,0.30185489,662.57,661.43,1.4637048]
[1748033858075,0.30185489,662.57,661.48,1.4637048]
[1748033861784,0.30185489,662.57,661.55,1.4637048]
[1748033863690,1.08054836,662.56,661.55,1.4637048]
[1748033863989,1.08054836,662.55,661.55,1.4637048]
[1748033864189,1.08054836,662.54,661.55,1.4637048]
[1748033864382,0.30185489,662.57,661.55,1.4637048]
[1748033864584,1.08090352,662.56,661.55,1.4637048]
[1748033864783,1.08090223,662.55,661.55,1.4637048]
[1748033864989,1.08090223,662.54,661.55,1.4637048]
[1748033865186,1.08115809,662.53,661.55,1.4637048]